Cogmind - Beta 16 @@@ ROGUE MODE // 2026.01.24 @ 10:52:05 Player: Sudoku Result: Destroyed by G-34 Mercenary with Small Laser Performance ------------- Evolutions (0) 0 Regions Visited (1) 200 Robots Destroyed (17) 85 Value Destroyed (440) 440 Prototype IDs (0) 0 Alien Tech Used (0) 0 Bonus (0) 0 TOTAL SCORE: 725 Bonus ------- None Cogmind --------- Core Integrity 0/250 Matter 278/300 Energy 100/100 System Corruption 0% Temperature Cool (6) Movement Treading (320) Ox2 Location -10/Materials Parts ------- > --- POWER (1) -------- (None) > --- PROPULSION (2) --- Light Treads Light Treads > --- UTILITY (2) ------ Huge Storage Unit Terrain Scanner > --- WEAPON (2) ------- Light Assault Rifle > --- INVENTORY (25) --- Ion Engine Ion Engine Light Ion Engine Light Ion Engine Light Nuclear Core Aluminum Leg Aluminum Leg Flight Unit Flight Unit Flight Unit Flight Unit Small Storage Unit Medium Matter Pod (100) Medium Matter Pod (47) Medium Matter Pod (0) High-capacity Matter Pod (0) Visual Processing Unit Targeting Computer Tractor Beam Particle Gun Light Assault Rifle Light Assault Rifle Grenade Launcher Grenade Launcher Datajack Peak State ------------ > --- POWER ------------ Light Ion Engine > --- PROPULSION ------- Light Treads Light Treads > --- UTILITY ---------- Huge Storage Unit Terrain Scanner > --- WEAPON ----------- Assault Rifle Light Assault Rifle > --- INVENTORY -------- Light Nuclear Core Aluminum Leg Aluminum Leg Flight Unit Flight Unit Flight Unit Large Storage Unit Medium Matter Pod Medium Matter Pod Medium Matter Pod Visual Processing Unit Targeting Computer Particle Gun Light Assault Rifle Grenade Launcher Mining Laser [Rating: 9] Favorites ----------- Power Light Ion Engine Engine Light Ion Engine Propulsion Aluminum Leg Treads Light Treads Leg Aluminum Leg Utility Terrain Scanner Device Terrain Scanner Storage Large Storage Unit Weapon Light Assault Rifle Ballistic Gun Light Assault Rifle Special Weapon Mining Laser Build | -11 -10 ------- Run | Yrd Mat Slots Evolved . | . . Power . | . . Propulsion . | . . Utility . | . . Weapon . | . . Parts Attached 16 | 7 9 Power 3 | 1 2 Engine 3 | 1 2 Core . | . . Reactor . | . . Propulsion 4 | 2 2 Treads 2 | . 2 Leg 2 | 2 . Wheel . | . . Hover . | . . Flight . | . . Utility 5 | 2 3 Device 1 | . 1 Storage 4 | 2 2 Processor . | . . Hackware . | . . Protection . | . . Artifact . | . . Weapon 4 | 2 2 Energy Gun . | . . Energy Cannon . | . . Ballistic Gun 3 | 2 1 Ballistic Cannon . | . . Launcher . | . . Special Weapon 1 | . 1 Impact Weapon . | . . Slashing Weapon . | . . Piercing Weapon . | . . Special Melee Weapon . | . . Unidentified Prototypes . | . . Parts Lost 2 | . 2 Power 1 | . 1 Propulsion . | . . Utility . | . . Weapon 1 | . 1 Highest Loss Streak 2 | . 2 To Critical Strikes . | . . Average Backups 13 | 4 14 Power 1 | . 2 Propulsion 3 | 3 3 Utility 4 | . 4 Weapon 3 | . 4 Tool/Special . | . . Unused Backups 25 | . 25 Power 4 | . 4 Propulsion 8 | . 8 Utility 7 | . 7 Weapon 5 | . 5 Tool/Special 1 | . 1 Average Slot Usage (%) 99 | . 99 Engine 13 | . 13 Treads 10 | . 10 Leg 17 | . 17 Device 12 | . 12 Storage 15 | . 15 Ballistic Gun 22 | . 22 Special Weapon 5 | . 5 Peak Build Rating 9 | 7 9 Average Rating 7 | 5 8 On Entrance 3 | . 7 Avg Prop Armor Cover (%) . | . . Naked Turns . | . . Heaviest Build 87 | 16 87 Greatest Support 40 | 20 40 Greatest Overweight (x) 2 | . 2 Average Overweight (x) . | . 1 Largest Inventory Capacity 25 | 8 25 Average Capacity 16 | 7 17 Most Carried 25 | 7 25 Average Carried 13 | 4 14 Final Capacity 25 | 8 25 Final Carried 25 | 6 25 Class Distribution -------------------- 100% | Mutant Dominant Class ---------------- Mutant | -10/Materials Resources | -11 -10 ----------- Run | Yrd Mat Matter Collected 766 | 298 468 Remotely . | . . Salvage Created 604 | 78 526 Parts 30 | 1 29 Haulers Intercepted . | . . Recyclers Shooed . | . . Parts Field Recycled . | . . Retrieved Matter . | . . Parts Self-Destructed . | . . Prevented . | . . Parts Restored . | . . Kills | -11 -10 ------- Run | Yrd Mat Combat Hostiles Destroyed 14 | . 14 Guns 14 | . 14 Classes Destroyed 5 | 1 4 Worker 1 | . 1 Recycler 1 | 1 . Watcher 1 | . 1 Swarmer 3 | . 3 Grunt 11 | . 11 Best Kill Streak 2 | 1 2 Combat Bots Only 2 | . 2 Max Kills in Single Turn 1 | 1 1 Gunslinging . | . . Exploded . | . . Melee . | . . Uniques/NPCs Destroyed . | . . Combat | -11 -10 -------- Run | Yrd Mat Hostile Shots Fired 92 | . 92 Missed 15 | . 15 Hits 77 | . 77 Projectile 77 | . 77 Damage Taken 836 | . 836 Core 251 | . 251 Absorbed by Shields . | . . Core Remaining (%) 100 | 100 . Volleys Fired 83 | 7 76 Largest 2 | 2 2 Hottest 120 | 40 120 Shots Fired 150 | 14 136 Gun 141 | 14 127 Cannon . | . . Launcher . | . . Special 9 | . 9 Kinetic 141 | 14 127 Thermal 9 | . 9 Explosive . | . . Electromagnetic . | . . Robot Hit Streak 12 | 8 12 Robot Miss Streak 4 | 1 4 Penetration Max . | . . Secondary Targets 2 | . 2 Max Gunslinging Chain 1 | . 1 Shots Hit Robots 87 | 11 76 Core Hits 34 | 2 32 Critical Kills . | . . Critical Parts Destroyed . | . . Critical Strikes . | . . Melee Attacks . | . . Impact . | . . Slashing . | . . Piercing . | . . Sneak Attacks . | . . Combat Hostiles . | . . Follow-up Attacks . | . . Damage Inflicted 939 | 121 818 Guns 915 | 121 794 Cannons . | . . Explosions . | . . Melee . | . . Ramming . | . . Kinetic 915 | 121 794 Thermal 24 | . 24 Explosive . | . . Electromagnetic . | . . Impact . | . . Slashing . | . . Piercing . | . . Highest Corruption . | . . Average Corruption . | . . Corruption Purged . | . . Corruption Blocked . | . . Overload Shots . | . . Overflow Damage . | . . Projectiles . | . . Explosions . | . . Melee . | . . Knockbacks . | . . Impact . | . . Kinetic . | . . Secondary . | . . Self-Inflicted Damage . | . . Shots . | . . Rammed . | . . Targets Rammed . | . . Kicked . | . . Crushed . | . . Highest Temperature 93 | . 93 Average Temperature 14 | . 14 Received Heat Transfer 438 | . 438 Siege Activations . | . . Martial Activations . | . . Shielding Activations . | . . Robots Disrupted . | . . Combat Hostiles . | . . Robots Corrupted . | . . Combat Hostiles . | . . Parts Fried . | . . Impact Corruptions . | . . Robots Melted . | . . Combat Hostiles . | . . Parts Melted . | . . Heat Transferred 50 | . 50 Parts Sabotaged . | . . Parts Stolen . | . . Parts Stripped . | . . Power Chain Reactions . | . . Alert | -11 -10 ------- Run | Yrd Mat Maximum Alert Level . | . . Low Security (%) 100 | 100 100 Level 1 . | . . Level 2 . | . . Level 3 . | . . Level 4 . | . . Level 5 . | . . High Security . | . . Max Security . | . . Peak Influence 166 | 5 166 Initial . | . . Average 43 | . 48 Influence Increases 435 | 5 430 Destroy 0b10 Robot/C 280 | . 280 Destroy 0b10 Robot/NC 15 | 5 10 Destroy Leader 62 | . 62 Successful Hack 13 | . 13 Select Force Hacks 30 | . 30 Destroy Structure 5 | . 5 Lose Combat Pursuer 30 | . 30 Influence Decreases 327 | 5 322 Time Decay 307 | 5 302 Lost Part 20 | . 20 Squads Dispatched 4 | . 4 Investigation 2 | . 2 Extermination . | . . Reinforcement 2 | . 2 Assault . | . . Garrison . | . . Intercept . | . . Searches Triggered . | . . Construction Impeded . | . . Haulers Reinforced . | . . Active Scanning Responses . | . . Cargo Convoy Interrupts . | . . Stealth | -11 -10 --------- Run | Yrd Mat Distress Signals 3 | . 3 Communications Jammed . | . . Distress Signals . | . . Times Spotted 28 | . 28 Peak Tracking Total 6 | . 6 Tactical Retreats 1 | . 1 Traps | -11 -10 ------- Run | Yrd Mat Traps Triggered 1 | . 1 Indirectly . | . . Trap Hack Attempts . | . . Triggered . | . . Disarmed . | . . Reprogrammed . | . . Reused . | . . Traps Extracted . | . . Installed . | . . Triggered . | . . Machines | -11 -10 ---------- Run | Yrd Mat Machines Disabled . | . . Max in Single Turn . | . . Machines Repaired . | . . Machines Dismantled . | . . Machines Sabotaged . | . . Overloaded Fab Kills . | . . Hacking | -11 -10 --------- Run | Yrd Mat Machines Accessed 7 | . 7 Terminals 5 | . 5 Fabricators . | . . Repair Stations . | . . Recycling Units 2 | . 2 Scanalyzers . | . . Garrison Access . | . . Total Hacks 21 | . 21 Successful 10 | . 10 Failed 11 | . 11 Catastrophic 1 | . 1 Database Lockouts . | . . Manual 14 | . 14 Terminals 17 | . 17 Fabricators . | . . Repair Stations . | . . Recycling Units 4 | . 4 Scanalyzers . | . . Garrison Access . | . . Terminal Hacks 4 | . 4 Terminal Index 1 | . 1 Hauler Manifests 1 | . 1 Zone Layout 2 | . 2 Fabricator Hacks . | . . Repair Station Hacks . | . . Recycling Unit Hacks 2 | . 2 Retrieve Components 2 | . 2 Scanalyzer . | . . Garrison Access Hacks . | . . Unauthorized Hacks 4 | . 4 Terminals 2 | . 2 Botnet 2 | . 2 Fabricators . | . . Repair Stations . | . . Recycling Units 2 | . 2 Recyclers 1 | . 1 Tunnel 1 | . 1 Scanalyzers . | . . Garrison Access . | . . Data Cores Recovered . | . . Used . | . . Hacking Detections 6 | . 6 Full Trace Events . | . . Feedback Events . | . . Feedback Blocked . | . . Robot Schematics Acquired . | . . Robots Built . | . . Authchips . | . . Time . | . . Total Robot Build Rating . | . . Part Schematics Acquired . | . . Parts Built . | . . Authchips . | . . Time . | . . Total Part Build Rating . | . . Part Studies Acquired . | . . Parts Repaired . | . . Time . | . . Parts Recycled . | . . Recycled Matter . | . . Retrieved Matter . | . . Retrieved Components 17 | . 17 Parts Scanalyzed . | . . Part Schematics Acquired . | . . Parts Damaged . | . . Bothacking | -11 -10 ------------ Run | Yrd Mat Used RIF Installer . | . . Robots Hacked . | . . Non-combat . | . . Combat . | . . Robot Hacks Applied . | . . Relay Couplers Released . | . . Fabnet Peak Effective % . | . . Robots Rewired . | . . Allies Hacked . | . . Hacks Repelled . | . . Allies | -11 -10 -------- Run | Yrd Mat Total Allies . | . . Largest Group . | . . Highest-Rated Group . | . . Highest-Rated Ally . | . . Total Orders . | . . Ally Attacks . | . . Total Damage . | . . Kills . | . . Allies Corrupted . | . . Allies Melted . | . . Intel | -11 -10 ------- Run | Yrd Mat Active Infowar (turns) 1024 | . 1024 Terrain 1024 | . 1024 Robot Analysis Total . | . . Derelict Logs Recovered . | . . Drone Launches . | . . Drone Recoveries . | . . Exploration | -11 -10 ------------- Run | Yrd Mat Turns Passed 1312 | 131 1181 Spaces Moved 510 | 77 433 Core 3 | 3 . Treads 89 | . 89 Legs 418 | 74 344 Wheels . | . . Hover . | . . Flight . | . . Fastest Speed 50 | 50 120 Average Speed 191 | 117 204 Slowest Speed 320 | 120 320 Overloaded Moves . | . . Propulsion Burnouts . | . . Robots Hopped . | . . Potential Cave-ins . | . . Cave-ins Triggered . | . . Exploration Rate (%) 34 | 5 63 Regions Visited 1 Branch Regions . Pre-discovered Areas 1 | . 1 Known Exits Taken . | . . Unknown Exits Taken 1 | 1 . Scrap Searched . | . . Spaces Dug 6 | . 6 Terrain Destroyed 7 | . 7 Melee . | . . Projectile 7 | . 7 AOE . | . . Terrain Rammed . | . . Walls Destroyed . | . . Machines Disabled . | . . Actions | -11 -10 --------- Run | Yrd Mat Total 698 | 105 593 Wait 29 | 2 27 Move 509 | 76 433 Hop . | . . Pick Up 44 | 13 31 Fast Attach 1 | . 1 Attach 8 | 7 1 Detach . | . . Swap 9 | . 9 Drop 15 | . 15 Fire 83 | 7 76 Melee . | . . Ram . | . . Kick . | . . Crush . | . . Escape Stasis . | . . Rewire . | . . Trap . | . . Miscellaneous . | . . Route ------- -11/Scrapyard -10/Materials (discovered 4 exits: [*Mat x2] / [*Min x2]) History --------- Turn | Location | Event 9 | -11/Scrapyard | Discovered new exit (range 14) 132 | -11/Scrapyard | Entered Materials 214 | -10/Materials | Discovered new exit (range 14) 310 | -10/Materials | Build established: Mutant 608 | -10/Materials | Discovered new exit (range 6) 828 | -10/Materials | Discovered new exit (range 16) 902 | -10/Materials | Core integrity fell below 50% 1091 | -10/Materials | Discovered new exit (range 4) 1300 | -10/Materials | Core integrity fell below 20% 1313 | -10/Materials | Destroyed by G-34 Mercenary with Small Laser Last Messages --------------- 01234_ Acquired Med. Matter Pod. 01236_ R-06 Scavenger collects Assault Rifle. 01240_ R-06 Scavenger inserts Heat Sink into recycling unit. 01243_ R-06 Scavenger inserts Aluminum Leg into recycling unit. 01246_ R-06 Scavenger inserts Assault Rifle into recycling unit. 01247_ Connecting with Recycling Unit... >>Force(Tunnel) DISCOVERED[-6/Extension] 01247_ ALERT: Suspicious activity at Recycling Unit M002. Dispatching Investigation squad. 01249_ R-06 Scavenger collects Aluminum Leg. 01256_ R-06 Scavenger collects Lgt. Assault Rifle. 01290_ Lgt. Ion Engine destroyed. 01292_ Mining Laser destroyed. 01308_ G-34 Mercenary destroyed. Map ----- +----------------------------------------------------+ | | | | | | | | | | | | | | | | | | | ???###########??##?#???#?????????????????????????# | | ??# """ """ #??##?????#?????????########????????? | | ? ?# """ """ ##????????#??????????# #?#####?#? | | ???# """ """ #???########?????????# ### #### | | ???# #??## #??#???????# T T | | ???# #??## """ #?#??#?##??# ### ### | | ???# # # """ #???????#??# #?#####?# | | #### ""T"" #?< # """ ##?????????#######?????### | | + """"" # # #??#????#???#?#######?#??# | | ##########+### # #????#??????#?##"""####### | | # # # ! #?#??????????##"|| "### | | #"" # #==!* #??#????#???##"" ""## | | #"Y # # ["" ############## ## | | #""r =# ######## =Y" ## ## # < # #+ | | # [[! # #?#???##| "" ## """ # #" # # | | + = # #????#?# = ## "T" #### + # | | # "" # ##########+####@ | " " ###"# ## # | | # "" # ug #?#### ### # | | # "" # ug """ ##?#?# # | | # "" # # """ #??#?# # | | # ######### ####### = """ ##?#?# """ +[ | | # #???#??## #?????# #???## """ # | | ###+###?#?#???# #?????############## """ #" | | ##?#?##??# #??????#??????# #" | | #???#????# #???#??#?##???# #" | | #????????# ###???????????# # | | #?????#??# #?#????#?????## ## | | """ ###??????# ############### ####+########? | | """ #????????# # #??? | | """ #?#??????# + ##?? | | #????????# """ !! # ##?? | | +############## """ ! # #??? | | ! + ## """ ! # #??? | | * #### """ ## # """ """ #??? | | #??# """ ## # """ """ #??? | | #??# """ ## """ """ = # """ """ #??? | | #??# ## """ """ == ###########??? | | ??# """*## """ """ = #?????? | | ?+ """!+ ! #?????? | | ## """ ## * #?????? | | ## ###################+#### ####?????? | +----------------------------------------------------+ Best States ------------- Heat Dissipation 25 Energy Generation 10 Energy Capacity 125 Matter Stores 300 Matter Capacity 300 Sight Range 16 Terrain Scan Range 14 Terrain Scan Density 10 Evasion (%) 55 Recoil Reduction 2 Item Schematics ----------------- None Robot Schematics ------------------ None Fabricated ------------ Nothing Repaired ---------- Nothing Studied --------- None Alien Tech Used ----------------- None Achievements -------------- None Challenges ------------ None Game ------ Seed HardcellMiningComputer Manual? 0 Play Time 00:27:48 Cumulative 114.9 hours Start 2026.01.24 @ 10:04:34 End 2026.01.24 @ 10:52:05 Sessions 1 Manual Loads 0 Difficulty Rogue Special Mode None Game No. 88 Rogue 88 Adventurer 0 Explorer 0 Win Type - Total 0 Types 0/0/0/0/0/0/0/0/0/0 Lore% 16 Gallery% 35 Achievement% 20 Wizard Run 0 Options --------- Layout 1 ASCII 0 Keyboard 0 Movement Mouse Keybinds 0 Fullscreen 1 Font 32/SmallcapsGlow Map View 50x35 Zoom Use 0% Tactical HUD 1 Map Filters NONE Filters NONE Steam 1 RUN: 6ac7c1d2-ecaa-44ac-a7de-37bb4bf74e49